Cogmind - Beta 17 @@@ ROGUE MODE // 2026.07.09 @ 18:52:25 Player: Zish Result: Core destroyed Performance ------------- Evolutions (4) 2000 Regions Visited (13) 2600 Robots Destroyed (305) 1525 Value Destroyed (8521) 8521 Prototype IDs (55) 1100 Alien Tech Used (0) 0 Bonus (964) 964 TOTAL SCORE: 16710 Bonus ------- High Alert Combat Kills 324 Follower Combat Kills 40 Aligned with FarCom 300 Met Data Miner 300 Cogmind --------- Core Integrity 0/850 Matter 300/300 Energy 85/100 System Corruption 13% Temperature Cool (0) Movement Core (200) Ox3 Location -5/Proximity Caves Parts ------- > --- POWER (1) -------- (None) > --- PROPULSION (5) --- Improved Flight Unit > --- UTILITY (7) ------ Hacking Suite Hacking Suite Hacking Suite Heart of Steel > --- WEAPON (2) ------- (None) > --- INVENTORY (5) ---- Medium Storage Unit Hacking Suite Peak State ------------ > --- POWER ------------ Light Fission Core > --- PROPULSION ------- Gravmag System Improved Gravmag System Improved Gravmag System Improved Gravmag System Improved Gravmag System > --- UTILITY ---------- Large Storage Unit Energy Filter Hacking Suite Hacking Suite Hacking Suite Hacking Suite Hacking Suite > --- WEAPON ----------- Gauss Cannon Longsword +1 > --- INVENTORY -------- Nuclear Core Improved Deuterium Engine Wheel Compact Wheel Improved Flight Unit Improved Flight Unit Surge Thruster Xenon Bombardment Thruster Xenon Bombardment Thruster Target Analyzer Advanced ECM Suite Gauss Cannon Gauss Cannon Mini Grenade Launcher Remote Datajack [Rating: 65] Favorites ----------- Power Light Ion Engine Engine Light Ion Engine Power Core Micro Nuclear Core Propulsion Light Treads Treads Light Treads Wheel Wheel Hover Unit Improved Gravmag System Flight Unit Cesium-ion Thruster Utility Hacking Suite Device Microactuators Storage Large Storage Unit Processor Advanced Targeting Computer Hackware Hacking Suite Protection Light Armor Plating Weapon Longsword +1 Energy Gun Spread Laser Energy Cannon Advanced Beam Cannon Ballistic Gun Assault Rifle Ballistic Cannon Gauss Cannon Launcher Mini Grenade Launcher Special Weapon Remote Datajack Impact Weapon Hammer Slashing Weapon Longsword +1 Special Melee Weapon Improved Datajack Build | -11 -10 -10 -9 -9 -9 -8 -8 -7 -6 -6 -6 -6 -5 ------- Run | Yrd Mat Min Mat Min Exi Min Mat Fac Fac Low Low Dat Pro Slots Evolved 8 | . . . 2 . . . 2 2 2 . . . . Power . | . . . . . . . . . . . . . . Propulsion 3 | . . . 1 . . . . 2 . . . . . Utility 5 | . . . 1 . . . 2 . 2 . . . . Weapon . | . . . . . . . . . . . . . . Parts Attached 154 | 8 10 . 20 2 1 2 28 39 39 1 1 . 3 Power 23 | 2 . . 5 . . . 7 4 4 . 1 . . Engine 13 | 2 . . 5 . . . 3 . 3 . . . . Core 10 | . . . . . . . 4 4 1 . 1 . . Reactor . | . . . . . . . . . . . . . . Propulsion 64 | 2 4 . 7 . . . 9 24 18 . . . . Treads 28 | 2 2 . 5 . . . 8 11 . . . . . Leg . | . . . . . . . . . . . . . . Wheel 8 | . . . . . . . . 8 . . . . . Hover 5 | . . . . . . . . . 5 . . . . Flight 23 | . 2 . 2 . . . 1 5 13 . . . . Utility 36 | 1 4 . 4 . . 1 7 6 10 1 . . 2 Device 9 | . . . . . . 1 1 2 3 1 . . 1 Storage 4 | 1 2 . . . . . . . 1 . . . . Processor 7 | . 2 . 1 . . . 1 2 1 . . . . Hackware 11 | . . . . . . . 3 2 5 . . . 1 Protection 5 | . . . 3 . . . 2 . . . . . . Artifact . | . . . . . . . . . . . . . . Weapon 31 | 3 2 . 4 2 1 1 5 5 7 . . . 1 Energy Gun 5 | . . . 1 . . . 1 1 1 . . . 1 Energy Cannon 2 | . . . 1 . . . . . 1 . . . . Ballistic Gun 7 | 3 . . 1 1 . . 2 . . . . . . Ballistic Cannon 8 | . . . . . . . 1 3 4 . . . . Launcher 3 | . 1 . 1 . . 1 . . . . . . . Special Weapon 2 | . . . . . . . 1 1 . . . . . Impact Weapon 2 | . 1 . . . . . . . 1 . . . . Slashing Weapon 1 | . . . . . 1 . . . . . . . . Piercing Weapon . | . . . . . . . . . . . . . . Special Melee Weapon 1 | . . . . 1 . . . . . . . . . Unidentified Prototypes 6 | . . . 2 . . 1 2 . . . . . 1 Parts Lost 71 | . 3 1 8 . . . 7 18 18 2 4 . 10 Power 12 | . 1 1 2 . . . 1 2 3 . 1 . 1 Propulsion 35 | . 2 . 5 . . . 2 12 8 1 1 . 4 Utility 14 | . . . . . . . 4 2 4 1 1 . 2 Weapon 10 | . . . 1 . . . . 2 3 . 1 . 3 Highest Loss Streak 7 | . 2 1 3 . . . 2 7 3 2 4 . 5 To Critical Strikes . | . . . . . . . . . . . . . . Average Backups 11 | . 5 7 11 15 15 14 13 11 13 8 5 5 2 Power 1 | . . . . 1 1 1 1 1 2 1 . . . Propulsion 4 | . 2 4 4 6 6 6 7 2 5 2 1 1 . Utility 2 | . . 1 1 2 3 2 1 5 2 2 2 2 2 Weapon 2 | . 1 1 3 4 4 4 2 1 2 1 1 1 . Tool/Special . | . . . . . . . . . . . . . . Unused Backups 16 | . 2 . 4 . 1 . 1 2 2 2 . . 2 Power 2 | . 1 . . . . . . . . 1 . . . Propulsion 5 | . . . 1 . . . 1 . 1 1 . . 1 Utility 3 | . . . . . . . . 2 . . . . 1 Weapon 4 | . 1 . 1 . 1 . . . 1 . . . . Tool/Special 2 | . . . 2 . . . . . . . . . . Average Slot Usage (%) 93 | . 89 95 87 100 100 100 96 96 94 99 91 86 71 Engine 5 | . 13 9 8 11 11 11 7 . 2 6 3 . . Core 2 | . . . . . . . 1 6 3 . 2 6 3 Treads 22 | . 19 28 26 33 33 33 26 30 . . . . . Wheel 1 | . . . . . . . . 3 2 . . . . Hover 1 | . . . . . . . . . 9 . . . . Flight 5 | . 8 . 1 . . . . 1 19 33 31 33 19 Device 2 | . . . . . . 2 6 2 2 6 13 13 12 Storage 8 | . 10 14 10 11 11 11 9 6 6 6 6 6 . Processor 9 | . 8 14 11 11 11 11 9 13 2 . . . . Hackware 11 | . . . . . . . 11 14 31 32 22 20 21 Protection 3 | . . . 8 11 11 8 5 . . . . . . Energy Cannon 1 | . . . 6 4 . . . . . . . . . Ballistic Gun 2 | . 15 14 1 6 11 8 1 . . . . . . Ballistic Cannon 3 | . . . . . . . 6 6 5 6 3 . . Impact Weapon 3 | . 11 14 10 11 1 . . . . 6 6 6 3 Slashing Weapon 4 | . . . . . 4 11 9 7 3 . . . . Peak Build Rating 65 | 6 8 8 15 16 22 28 39 48 65 50 49 45 54 Average Rating 32 | 4 6 7 11 15 19 22 34 43 53 49 43 41 44 On Entrance 25 | . 6 8 7 15 16 22 21 36 38 48 49 41 45 Avg Prop Armor Cover (%) 8 | . . . 7 . . . . 9 . . . . 6 Naked Turns . | . . . . . . . . . . . . . . Heaviest Build 54 | 14 29 27 37 32 32 35 54 38 49 27 27 23 23 Greatest Support 114 | 40 40 40 60 60 60 60 62 114 62 33 33 32 32 Greatest Overweight (x) 12 | . 3 . 1 . . . . 11 12 . . . 2 Average Overweight (x) . | . . . . . . . . . . . . . . Largest Inventory Capacity 15 | 8 15 15 15 15 15 15 15 15 15 10 10 10 10 Average Capacity 14 | 6 10 15 14 15 15 15 15 14 14 10 10 10 5 Most Carried 15 | 2 9 7 15 15 15 15 15 15 15 10 8 7 6 Average Carried 11 | . 5 7 11 14 14 14 13 11 13 9 7 6 3 Final Capacity 15 | 8 15 15 15 15 15 15 15 15 10 10 10 10 5 Final Carried 15 | 2 7 7 15 15 15 15 12 15 10 8 7 6 2 Class Distribution -------------------- 32% | Mutant 31% | Scavenger-Mutant 26% | Hacker-Mutant 7% | Hacker-Sprinter Dominant Class ---------------- Mutant | -10/Materials Mutant | -10/Mines Mutant | -9/Materials Scavenger-Mutant | -9/Mines Scavenger-Mutant | -9/Exiles Scavenger-Mutant | -8/Mines Scavenger-Mutant | -8/Materials Hacker-Mutant | -7/Factory Hacker-Mutant | -6/Factory Hacker-Sprinter | -6/Lower Caves Hacker-Sprinter | -6/Lower Caves Hacker-Sprinter | -6/Data Miner Hacker-Mutant | -5/Proximity Caves Resources | -11 -10 -10 -9 -9 -9 -8 -8 -7 -6 -6 -6 -6 -5 ----------- Run | Yrd Mat Min Mat Min Exi Min Mat Fac Fac Low Low Dat Pro Matter Collected 3822 | 209 371 1 401 . . 8 793 932 879 168 20 . 40 Remotely . | . . . . . . . . . . . . . . Salvage Created 11410 | . 711 79 2078 . . 50 2351 3261 2614 20 172 . 74 Parts 633 | . 29 3 103 . . 14 146 200 134 . 2 . 2 Haulers Intercepted 11 | . 1 . 5 . . . 2 2 1 . . . . Recyclers Shooed 6 | . . . 2 . . . 1 . 3 . . . . Parts Field Recycled . | . . . . . . . . . . . . . . Retrieved Matter . | . . . . . . . . . . . . . . Parts Self-Destructed 5 | . . . . . . . . . . . 1 . 4 Prevented 3 | . . . . . . . . . . . 2 . 1 Parts Restored . | . . . . . . . . . . . . . . Kills | -11 -10 -10 -9 -9 -9 -8 -8 -7 -6 -6 -6 -6 -5 ------- Run | Yrd Mat Min Mat Min Exi Min Mat Fac Fac Low Low Dat Pro Combat Hostiles Destroyed 191 | . 16 3 38 . . 9 45 43 32 . 3 . 2 Melee 109 | . 4 1 13 . . . 36 33 18 . 3 . 1 Guns 22 | . 9 . 9 . . . 3 . . . . . 1 Cannons 34 | . . 1 8 . . . 6 10 9 . . . . AOE 16 | . . . 4 . . 9 . . 3 . . . . Classes Destroyed 18 | . 6 1 5 . . . 4 2 . . . . . Worker 23 | . . . 5 . . 1 4 7 6 . . . . Builder 17 | . 1 . 1 . . . 4 7 4 . . . . Tunneler 9 | . . 1 3 . . . 1 2 2 . . . . Hauler 11 | . 1 . 5 . . . 2 2 1 . . . . Recycler 20 | . . . 5 . . . . 10 5 . . . . Mechanic 3 | . . . 1 . . . 1 . 1 . . . . Operator 15 | . 3 . 3 . . . 3 3 3 . . . . Watcher 16 | . 3 . 5 . . . 3 2 3 . . . . Swarmer 46 | . 6 2 13 . . 9 6 4 5 . . . 1 Cutter 3 | . . . . . . . 3 . . . . . . Grunt 92 | . 10 1 18 . . . 24 23 13 . 3 . . Brawler 1 | . . . . . . . . 1 . . . . . Duelist 3 | . . . 1 . . . 1 . 1 . . . . Sentry 23 | . . . 6 . . . 7 5 5 . . . . Specialist 2 | . . . . . . . 2 . . . . . . Hunter 8 | . . . . . . . 1 3 4 . . . . Programmer 12 | . . . . . . . . 7 4 . . . 1 Heavy 1 | . . . . . . . 1 . . . . . . Best Kill Streak 8 | . 3 2 8 . . 6 7 7 5 . 1 . 1 Combat Bots Only 6 | . 3 2 6 . . 6 6 6 5 . 1 . 1 Max Kills in Single Turn 4 | . 1 1 4 . . 3 1 2 3 . 1 . 1 Gunslinging . | . . . . . . . . . . . . . . Exploded 4 | . . . 4 . . 3 . . 2 . . . . Melee 1 | . 1 1 1 . . . 1 1 1 . 1 . 1 Uniques/NPCs Destroyed . | . . . . . . . . . . . . . . Combat | -11 -10 -10 -9 -9 -9 -8 -8 -7 -6 -6 -6 -6 -5 -------- Run | Yrd Mat Min Mat Min Exi Min Mat Fac Fac Low Low Dat Pro Hostile Shots Fired 1044 | . 96 14 174 . . 15 144 278 191 11 27 . 94 Missed 286 | . 22 2 50 . . 4 37 70 58 8 6 . 29 Hits 758 | . 74 12 124 . . 11 107 208 133 3 21 . 65 Melee 17 | . . . 2 . . . 8 3 4 . . . . Projectile 741 | . 74 12 122 . . 11 99 205 129 3 21 . 65 Critical Strikes 29 | . 1 . 4 . . . 8 4 4 . 2 . 6 Part Disruptions 1 | . . . . . . . . 1 . . . . . Damage Taken 11230 | . 820 105 1499 . . 188 1895 3082 2118 71 396 . 1056 Core 2059 | . 208 27 273 . . 20 236 414 545 . 130 . 206 Absorbed by Shields . | . . . . . . . . . . . . . . Regen/Repaired (Parts) 568 | . 84 . 83 . . . . 206 195 . . . . Core Remaining (%) 45 | 100 . 6 . . . 26 57 40 . . . . . Volleys Fired 287 | . 37 . 79 . . 7 44 67 47 . . . 6 Largest 2 | . 2 . 1 . . 1 1 1 2 . . . 2 Hottest 135 | . 40 . 68 . . 30 37 40 121 . . . 135 Shots Fired 330 | . 51 . 79 . 1 7 44 70 71 . . . 7 Gun 124 | . 51 . 48 . 1 . 17 . . . . . 7 Cannon 190 | . . . 27 . . . 27 67 69 . . . . Launcher 13 | . . . 4 . . 7 . . 2 . . . . Special 3 | . . . . . . . . 3 . . . . . Kinetic 244 | . 51 . 16 . 1 . 44 67 65 . . . . Thermal 65 | . . . 59 . . . . . . . . . 6 Explosive 13 | . . . 4 . . 7 . . 2 . . . . Electromagnetic 5 | . . . . . . . . . 4 . . . 1 Robot Hit Streak 22 | . 18 . 22 . . 1 12 11 8 . . . 6 Robot Miss Streak 16 | . 3 . 6 . . 3 16 5 5 . . . 2 Penetration Max 1 | . . . . . . . . 1 . . . . . Secondary Targets . | . . . . . . . . . . . . . . Shots Hit Robots 698 | . 63 6 141 1 1 2 149 166 146 1 14 . 8 Core Hits 329 | . 21 2 81 . . 9 79 74 57 . 2 . 4 Critical Kills 8 | . 4 . 4 . . . . . . . . . . Critical Parts Destroyed 23 | . 5 . 14 . . . . . 2 . 2 . . Critical Strikes 75 | . 9 . 18 . . . 10 19 17 . 2 . . Meltdown 1 | . . . 1 . . . . . . . . . . Blast 12 | . . . . . . . . 6 6 . . . . Smash 31 | . 9 . 17 . . . . . 3 . 2 . . Sever 31 | . . . . . . . 10 13 8 . . . . Melee Attacks 559 | . 45 6 87 1 1 . 125 149 117 1 22 . 5 Impact 181 | . 45 6 87 . . . . . 15 1 22 . 5 Slashing 374 | . . . . . . . 123 149 102 . . . . Piercing . | . . . . . . . . . . . . . . Sneak Attacks 107 | . 4 1 25 1 1 . 25 25 24 . 1 . . Combat Hostiles 13 | . . . . . . . 8 . 4 . 1 . . Follow-up Attacks . | . . . . . . . . . . . . . . Damage Inflicted 28728 | . 1186 196 4063 . . 543 6553 8127 7147 81 551 . 281 Guns 1403 | . 451 . 609 . . . 263 . . . . . 80 Cannons 3296 | . . . 492 . . . 424 1172 1208 . . . . Explosions 1245 | . . . 458 . . 543 . 79 165 . . . . Melee 22757 | . 735 196 2504 . . . 5866 6876 5774 81 551 . 174 Ramming 27 | . . . . . . . . . . . . . 27 Kinetic 3556 | . 451 . 141 . . . 687 1172 1105 . . . . Thermal 1036 | . . . 960 . . . . . . . . . 76 Explosive 1166 | . . . 458 . . 543 . . 165 . . . . Electromagnetic 186 | . . . . . . . . 79 103 . . . 4 Impact 4829 | . 735 196 2504 . . . . . 588 81 551 . 174 Slashing 17928 | . . . . . . . 5866 6876 5186 . . . . Piercing . | . . . . . . . . . . . . . . Highest Corruption 13 | . 1 1 2 2 2 2 . 7 3 3 3 3 13 Average Corruption 2 | . 1 1 2 2 2 2 . 3 2 3 3 3 5 Corruption Purged . | . . . . . . . . . . . . . . Corruption Blocked . | . . . . . . . . . . . . . . Effects 110 | . . 1 12 2 7 5 . 63 8 5 2 . 5 Message Errors 25 | . . . 2 . 1 2 . 14 3 1 1 . 1 Matter Fused 28 | . . 1 4 . 2 1 . 16 1 1 . . 2 Heat Flow Errors 12 | . . . 1 1 1 1 . 5 1 2 . . . Energy Discharges 13 | . . . 2 . . . . 7 1 1 . . 2 Parts Fused 3 | . . . . . 1 . . 2 . . . . . Data Loss (minor) 12 | . . . . 1 . . . 8 2 . 1 . . Data Loss (major) 9 | . . . 1 . 1 1 . 6 . . . . . Misfires 6 | . . . 1 . 1 . . 4 . . . . . Weapon Failures 2 | . . . 1 . . . . 1 . . . . . Overload Shots . | . . . . . . . . . . . . . . Overflow Damage 4073 | . 187 52 848 . . 39 636 913 1179 72 122 . 25 Projectiles 103 | . . . . . . . . 67 36 . . . . Explosions 82 | . . . 40 . . 39 . 3 . . . . . Melee 3888 | . 187 52 808 . . . 636 843 1143 72 122 . 25 Knockbacks 45 | . 3 2 8 . . . 9 8 13 . 1 . 1 Impact 14 | . 3 1 8 . . . . . . . 1 . 1 Kinetic 29 | . . . . . . . 9 7 13 . . . . Secondary 2 | . . 1 . . . . . 1 . . . . . Self-Inflicted Damage 261 | . . . 29 . . 103 . 70 48 . . . 11 Shots 7 | . . . 1 . . 3 . 2 1 . . . . Rammed 17 | . . . . . . . . . . . . . 17 Targets Rammed 17 | . . . . . . . . . . . . . 17 Kicked . | . . . . . . . . . . . . . . Crushed . | . . . . . . . . . . . . . . Highest Temperature 310 | . 20 . 180 201 155 224 15 200 310 292 8 1 54 Average Temperature 78 | . 5 . 47 100 74 115 4 53 108 139 6 1 26 Received Heat Transfer 3015 | . 402 18 462 . . . 549 735 603 21 225 . . Effects 2 | . . . . . . . . . 2 . . . . Interference 2 | . . . . . . . . . 2 . . . . Siege Activations . | . . . . . . . . . . . . . . Martial Activations . | . . . . . . . . . . . . . . Shielding Activations . | . . . . . . . . . . . . . . Robots Disrupted . | . . . . . . . . . . . . . . Combat Hostiles . | . . . . . . . . . . . . . . Robots Corrupted 21 | . 5 2 12 . . . . . 2 . . . . Combat Hostiles 10 | . 3 1 4 . . . . . 2 . . . . Parts Fried 43 | . 12 3 20 . . . . . 3 . 4 . 1 Impact Corruptions 66 | . 11 3 39 . . . . . 9 1 2 . 1 Robots Melted 1 | . . . 1 . . . . . . . . . . Combat Hostiles . | . . . . . . . . . . . . . . Parts Melted 3 | . . . 2 . . . . . . . . . 1 Heat Transferred 1561 | . . . 1411 . . . . . . . . . 150 Parts Sabotaged . | . . . . . . . . . . . . . . Parts Stolen . | . . . . . . . . . . . . . . Parts Stripped . | . . . . . . . . . . . . . . Power Chain Reactions . | . . . . . . . . . . . . . . Alert | -11 -10 -10 -9 -9 -9 -8 -8 -7 -6 -6 -6 -6 -5 ------- Run | Yrd Mat Min Mat Min Exi Min Mat Fac Fac Low Low Dat Pro Maximum Alert Level 3 | . . . 2 1 . 1 2 3 1 . . . . Low Security (%) 47 | 100 100 100 43 76 . 94 17 35 71 . . . . Level 1 34 | . . . 10 23 . 5 68 41 28 . . . . Level 2 17 | . . . 45 . . . 13 20 . . . . . Level 3 . | . . . . . . . . 2 . . . . . Level 4 . | . . . . . . . . . . . . . . Level 5 . | . . . . . . . . . . . . . . High Security . | . . . . . . . . . . . . . . Max Security . | . . . . . . . . . . . . . . Peak Influence 736 | . 92 50 579 211 . 246 565 736 368 . . . . Initial 360 | . . 12 9 211 . . 91 147 360 . . . . Average 237 | . 29 27 298 172 . 26 288 299 159 . . . . Influence Increases 6635 | . 549 85 1231 . . 266 1322 1498 1209 125 85 . 265 Destroy 0b10 Robot/C 3860 | . 320 60 760 . . 180 900 860 640 . 60 . 80 Destroy 0b10 Robot/NC 575 | . 40 5 140 . . 5 90 165 125 5 . . . Destroy Leader 964 | . 88 20 190 . . 30 210 238 168 . 10 . 10 Allied During Kill 10 | . . . . . . . . . . . . . 10 Successful Hack 75 | . 8 . 25 . . . 10 11 21 . . . . Select Force Hacks 120 | . . . 30 . . . 30 . 60 . . . . Disable Machine 150 | . 45 . . . . . . 75 30 . . . . Destroy Structure 161 | . 3 . 41 . . 51 7 29 30 . . . . Partial Spotted 60 | . . . . . . . . . 60 . . . . Lose Combat Pursuer 660 | . 45 . 45 . . . 75 120 75 120 15 . 165 Influence Decreases 6580 | . 518 91 712 413 131 30 1234 1086 1632 266 134 123 210 Entered New Map 1470 | . . 19 16 333 131 . 145 177 376 116 34 123 . Time Decay 3449 | . 378 62 616 80 . 30 699 729 575 130 60 . 90 Lost Part 701 | . 21 10 80 . . . 70 180 180 20 40 . 100 Lost Ally 40 | . . . . . . . 20 . . . . . 20 Purge Threat 920 | . 119 . . . . . 300 . 501 . . . . Squads Dispatched 58 | . 5 1 7 . . . 9 18 18 . . . . Investigation 24 | . 2 1 3 . . . 2 6 10 . . . . Extermination 12 | . . . . . . . . 7 5 . . . . Reinforcement 20 | . 3 . 3 . . . 6 5 3 . . . . Assault 1 | . . . 1 . . . . . . . . . . Garrison 1 | . . . . . . . 1 . . . . . . Intercept . | . . . . . . . . . . . . . . Searches Triggered . | . . . . . . . . . . . . . . Construction Impeded 1 | . . . 1 . . . . . . . . . . Haulers Reinforced 1 | . . . . . . . . . 1 . . . . Active Scanning Responses . | . . . . . . . . . . . . . . Cargo Convoy Interrupts . | . . . . . . . . . . . . . . Stealth | -11 -10 -10 -9 -9 -9 -8 -8 -7 -6 -6 -6 -6 -5 --------- Run | Yrd Mat Min Mat Min Exi Min Mat Fac Fac Low Low Dat Pro Distress Signals 6 | . . . . . . . 4 1 1 . . . . Communications Jammed . | . . . . . . . . . . . . . . Distress Signals . | . . . . . . . . . . . . . . Times Spotted 293 | . 31 4 55 . . 9 59 62 47 8 2 . 16 Peak Tracking Total 10 | . 4 3 6 . . 3 6 5 3 4 2 . 10 Tactical Retreats 26 | . 2 . 2 . . . 4 7 4 4 1 . 2 Traps | -11 -10 -10 -9 -9 -9 -8 -8 -7 -6 -6 -6 -6 -5 ------- Run | Yrd Mat Min Mat Min Exi Min Mat Fac Fac Low Low Dat Pro Traps Triggered 13 | . . . 2 . . . 4 1 6 . . . . Indirectly . | . . . . . . . . . . . . . . Trap Hack Attempts . | . . . . . . . . . . . . . . Triggered . | . . . . . . . . . . . . . . Disarmed . | . . . . . . . . . . . . . . Reprogrammed . | . . . . . . . . . . . . . . Reused . | . . . . . . . . . . . . . . Traps Extracted . | . . . . . . . . . . . . . . Installed . | . . . . . . . . . . . . . . Triggered . | . . . . . . . . . . . . . . Machines | -11 -10 -10 -9 -9 -9 -8 -8 -7 -6 -6 -6 -6 -5 ---------- Run | Yrd Mat Min Mat Min Exi Min Mat Fac Fac Low Low Dat Pro Machines Disabled 10 | . 3 . . . . . . 5 2 . . . . Max in Single Turn 2 | . 1 . . . . . . 2 1 . . . . Garrison Access 2 | . . . . . . . 1 1 . . . . . Machines Repaired . | . . . . . . . . . . . . . . Machines Dismantled . | . . . . . . . . . . . . . . Machines Sabotaged . | . . . . . . . . . . . . . . Overloaded Fab Kills . | . . . . . . . . . . . . . . Hacking | -11 -10 -10 -9 -9 -9 -8 -8 -7 -6 -6 -6 -6 -5 --------- Run | Yrd Mat Min Mat Min Exi Min Mat Fac Fac Low Low Dat Pro Machines Accessed 52 | . 7 1 7 1 2 . 5 10 14 1 . 4 . Terminals 20 | . 5 1 4 . . . 3 3 4 . . . . Fabricators 5 | . . . . . . . . 3 2 . . . . Repair Stations 6 | . 1 . 1 . . . . 1 3 . . . . Recycling Units 7 | . 1 . 1 . . . . 2 3 . . . . Scanalyzers 4 | . . . 1 . . . 1 . 2 . . . . Garrison Access 2 | . . . . . . . 1 1 . . . . . Total Hacks 153 | . 15 3 18 1 4 . 16 28 39 1 . 28 . Successful 105 | . 7 1 11 1 4 . 13 15 24 1 . 28 . Failed 46 | . 8 2 7 . . . 2 13 14 . . . . Catastrophic 6 | . 1 1 2 . . . 1 . 1 . . . . Database Lockouts 2 | . . . . . . . 1 . 1 . . . . Manual 41 | . 6 2 6 . 1 . 9 4 13 . . . . Terminals 52 | . 8 3 11 . . . 8 7 15 . . . . Fabricators 11 | . . . . . . . . 7 4 . . . . Repair Stations 20 | . 2 . 3 . . . . 7 8 . . . . Recycling Units 17 | . 5 . 1 . . . . 5 6 . . . . Scanalyzers 16 | . . . 3 . . . 7 . 6 . . . . Garrison Access 3 | . . . . . . . 1 2 . . . . . Terminal Hacks 56 | . 3 1 5 1 4 . 4 2 7 1 . 28 . Record 15 | . . . 1 . 3 . . . . . . 11 . Part Schematic 8 | . . . . . . . . . . . . 8 . Robot Schematic 6 | . . . . . . . . . . . . 6 . Robot Analysis 1 | . 1 . . . . . . . . . . . . Prototype ID Bank 7 | . . . 2 . . . . 1 1 . . 3 . Open Door 2 | . . . . 1 . . . . . 1 . . . Level Access Points 3 | . . . 1 . . . 1 1 . . . . . Branch Access Points 3 | . . . 1 . . . 1 . 1 . . . . Unreport Threat 9 | . 2 . . . . . 2 . 5 . . . . Zone Layout 1 | . . 1 . . . . . . . . . . . Proto ID Catalog 1 | . . . . . 1 . . . . . . . . Fabricator Hacks 9 | . . . . . . . . 5 4 . . . . Load Schematic 5 | . . . . . . . . 3 2 . . . . Build 4 | . . . . . . . . 2 2 . . . . Repair Station Hacks 15 | . 2 . 2 . . . . 5 6 . . . . Scan Component 8 | . 1 . 1 . . . . 3 3 . . . . Repair 7 | . 1 . 1 . . . . 2 3 . . . . Recycling Unit Hacks 6 | . 1 . 1 . . . . 1 3 . . . . Report Inventory 2 | . 1 . 1 . . . . . . . . . . Retrieve Components 4 | . . . . . . . . 1 3 . . . . Scanalyzer 8 | . . . 1 . . . 5 . 2 . . . . Insert Component 3 | . . . . . . . 2 . 1 . . . . Analyze 2 | . . . . . . . 2 . . . . . . Retrieve Study 3 | . . . 1 . . . 1 . 1 . . . . Garrison Access Hacks 2 | . . . . . . . 1 1 . . . . . Seal Access 2 | . . . . . . . 1 1 . . . . . Unauthorized Hacks 9 | . 1 . 2 . . . 3 1 2 . . . . Terminals 5 | . 1 . 1 . . . 2 1 . . . . . Operators 5 | . 1 . 1 . . . 2 1 . . . . . Fabricators . | . . . . . . . . . . . . . . Repair Stations . | . . . . . . . . . . . . . . Recycling Units . | . . . . . . . . . . . . . . Scanalyzers 4 | . . . 1 . . . 1 . 2 . . . . Extract 4 | . . . 1 . . . 1 . 2 . . . . Garrison Access . | . . . . . . . . . . . . . . Data Cores Recovered 2 | . . . 1 . . . . . 1 . . . . Used . | . . . . . . . . . . . . . . Hacking Detections 29 | . 5 1 3 . . . 1 8 11 . . . . Full Trace Events 20 | . 3 1 1 . . . 1 6 8 . . . . Feedback Events 1 | . 1 . . . . . . . . . . . . Corruption 1 | . 1 . . . . . . . . . . . . Feedback Blocked . | . . . . . . . . . . . . . . Robot Schematics Acquired 6 | . . . . . . . . . . . . 6 . Robots Built . | . . . . . . . . . . . . . . Authchips . | . . . . . . . . . . . . . . Time . | . . . . . . . . . . . . . . Total Robot Build Rating . | . . . . . . . . . . . . . . Part Schematics Acquired 23 | . . . 4 . . . 5 . 6 . . 8 . Parts Built 4 | . . . . . . . . 2 2 . . . . Authchips . | . . . . . . . . . . . . . . Time 219 | . . . . . . . . 122 97 . . . . Total Part Build Rating 11 | . . . . . . . . 5 6 . . . . Part Studies Acquired 3 | . . . 1 . . . 1 . 1 . . . . Parts Repaired 7 | . 1 . 1 . . . . 2 3 . . . . Time 232 | . 26 . 26 . . . . 97 83 . . . . Parts Recycled . | . . . . . . . . . . . . . . Recycled Matter . | . . . . . . . . . . . . . . Retrieved Matter . | . . . . . . . . . . . . . . Retrieved Components 13 | . . . . . . . . 10 3 . . . . Parts Scanalyzed 2 | . . . . . . . 2 . . . . . . Part Schematics Acquired 2 | . . . . . . . 2 . . . . . . Parts Damaged . | . . . . . . . . . . . . . . Bothacking | -11 -10 -10 -9 -9 -9 -8 -8 -7 -6 -6 -6 -6 -5 ------------ Run | Yrd Mat Min Mat Min Exi Min Mat Fac Fac Low Low Dat Pro Used RIF Installer . | . . . . . . . . . . . . . . Robots Hacked 3 | . . . . 1 1 . . 1 . . . . . Non-combat 1 | . . . . . . . . 1 . . . . . Combat 2 | . . . . 1 1 . . . . . . . . Robot Hacks Applied 3 | . . . . 1 1 . . 1 . . . . . parse_system 2 | . . . . 1 1 . . . . . . . . find_recycling 1 | . . . . . . . . 1 . . . . . Relay Couplers Released . | . . . . . . . . . . . . . . Fabnet Peak Effective % . | . . . . . . . . . . . . . . Robots Rewired . | . . . . . . . . . . . . . . Allies Hacked . | . . . . . . . . . . . . . . Hacks Repelled . | . . . . . . . . . . . . . . Allies | -11 -10 -10 -9 -9 -9 -8 -8 -7 -6 -6 -6 -6 -5 -------- Run | Yrd Mat Min Mat Min Exi Min Mat Fac Fac Low Low Dat Pro Total Allies 2 | . . . . . . . 1 . . . . . 1 Largest Group 1 | . . . . . . . 1 . . . . . 1 Highest-Rated Group 96 | . . . . . . . 16 . . . . . 96 Highest-Rated Ally 96 | . . . . . . . 16 . . . . . 96 Total Orders . | . . . . . . . . . . . . . . Ally Attacks 10 | . . . . . . . 6 . . . . . 4 Total Damage 156 | . . . . . . . 15 . . . . . 141 Kills 2 | . . . . . . . . . . . . . 2 Allies Corrupted . | . . . . . . . . . . . . . . Allies Melted . | . . . . . . . . . . . . . . Intel | -11 -10 -10 -9 -9 -9 -8 -8 -7 -6 -6 -6 -6 -5 ------- Run | Yrd Mat Min Mat Min Exi Min Mat Fac Fac Low Low Dat Pro Active Infowar (turns) 10 | . . . . . . . . 1 9 . . . . ECM 10 | . . . . . . . . 1 9 . . . . Robot Analysis Total 1 | . 1 . . . . . . . . . . . . Derelict Logs Recovered 4 | . . . . . . . . . . 1 1 . 2 Drone Launches 6 | . . . . . . . 6 . . . . . . Drone Recoveries 6 | . . . . . . . 6 . . . . . . Exploration | -11 -10 -10 -9 -9 -9 -8 -8 -7 -6 -6 -6 -6 -5 ------------- Run | Yrd Mat Min Mat Min Exi Min Mat Fac Fac Low Low Dat Pro Turns Passed 13893 | 70 1166 143 2526 170 410 348 2979 3578 1891 276 132 22 182 Spaces Moved 10201 | 39 1008 80 1272 101 251 205 1363 2197 2045 994 261 84 301 Core 13 | 3 . . . . . . . 6 2 . . . 2 Treads 5243 | 36 390 80 1177 101 251 205 1363 1640 . . . . . Legs . | . . . . . . . . . . . . . . Wheels 377 | . . . . . . . . 242 135 . . . . Hover 559 | . . . . . . . . . 559 . . . . Flight 4009 | . 618 . 95 . . . . 309 1349 994 261 84 299 Fastest Speed 24 | 50 37 160 34 160 160 160 158 24 24 24 25 25 25 Average Speed 101 | 151 85 160 153 160 160 160 160 127 50 24 25 25 36 Slowest Speed 650 | 160 277 160 240 160 160 160 166 600 650 25 28 25 150 Overloaded Moves . | . . . . . . . . . . . . . . Propulsion Burnouts . | . . . . . . . . . . . . . . Robots Hopped . | . . . . . . . . . . . . . . Potential Cave-ins . | . . . . . . . . . . . . . . Cave-ins Triggered . | . . . . . . . . . . . . . . Exploration Rate (%) 51 | 4 97 25 78 15 61 37 75 41 51 85 46 69 38 Regions Visited 13 Branch Regions 8 Pre-discovered Areas 3 | . . . . . 1 . . . . 1 . 1 . Known Exits Taken 6 | . . . 1 . . 1 1 1 1 . 1 . . Unknown Exits Taken 7 | 1 1 1 . 1 1 . . . . 1 . 1 . Scrap Searched 6 | . . 1 . . . . . . . 3 1 . 1 Spaces Dug 37 | . 1 . 7 . . . 7 16 6 . . . . Terrain Destroyed 180 | . 1 . 44 . . 74 7 25 29 . . . . Melee 37 | . 1 . 7 . . . 7 16 6 . . . . Projectile 24 | . . . 1 . . . . 9 14 . . . . AOE 119 | . . . 36 . . 74 . . 9 . . . . Terrain Rammed . | . . . . . . . . . . . . . . Walls Destroyed . | . . . . . . . . . . . . . . Machines Disabled . | . . . . . . . . . . . . . . Actions | -11 -10 -10 -9 -9 -9 -8 -8 -7 -6 -6 -6 -6 -5 --------- Run | Yrd Mat Min Mat Min Exi Min Mat Fac Fac Low Low Dat Pro Total 12829 | 46 1184 85 1620 111 261 220 2022 2783 2725 1030 304 84 354 Wait 1288 | . 53 . 106 . . 1 404 273 386 26 19 . 20 Move 10188 | 38 1007 79 1271 100 250 204 1362 2196 2044 993 260 83 301 Hop . | . . . . . . . . . . . . . . Pick Up 107 | . 13 . 23 2 3 2 17 21 24 1 1 . . Fast Attach 85 | 6 8 . 11 2 1 . 6 18 32 . . . 1 Attach 97 | . 5 . 13 1 2 3 18 18 28 4 2 1 2 Detach 51 | . 4 . 7 1 . 1 7 13 15 2 . . 1 Swap 40 | 2 2 . 7 . . . 15 9 5 . . . . Drop 111 | . 10 . 16 4 4 2 24 19 27 3 . . 2 Fire 287 | . 37 . 79 . . 7 44 67 47 . . . 6 Melee 559 | . 45 6 87 1 1 . 125 149 117 1 22 . 5 Ram 16 | . . . . . . . . . . . . . 16 Kick . | . . . . . . . . . . . . . . Crush . | . . . . . . . . . . . . . . Escape Stasis . | . . . . . . . . . . . . . . Rewire . | . . . . . . . . . . . . . . Trap . | . . . . . . . . . . . . . . Miscellaneous . | . . . . . . . . . . . . . . Route ------- -11/Scrapyard -10/Materials (discovered 4 exits: *Mat x3 / *Min) -10/Mines -9/Materials (discovered 4 exits: *Mat x3 / *Min) -9/Mines -9/Exiles -8/Mines -8/Materials (discovered 3 exits: *Fac x3) -7/Factory (discovered 5 exits: *Fac x4 / [*Sto]) -6/Factory (discovered 3 exits: [*Fac] / *Low x2) -6/Lower Caves -6/Lower Caves -6/Data Miner -5/Proximity Caves History --------- Turn | Location | Event 49 | -11/Scrapyard | Discovered new exit (range 12) 71 | -11/Scrapyard | Entered Materials 320 | -10/Materials | Build established: Mutant 720 | -10/Materials | Discovered new exit (range 11) 751 | -10/Materials | Core integrity fell below 50% 846 | -10/Materials | Discovered new exit (range 14) 856 | -10/Materials | Discovered new exit (range 6) 871 | -10/Materials | Discovered new exit (range 15) 937 | -10/Materials | Repaired Assault Rifle 1207 | -10/Materials | Core integrity fell below 20% 1237 | -10/Materials | Entered Mines 1292 | -10/Mines | Met a Derelict bent on vengeance 1363 | -10/Mines | Discovered new exit (range 12) 1380 | -10/Mines | Entered Materials 1380 | -9/Materials | Evolved 2 slots: Propulsion x1, Utility x1 1413 | -9/Materials | Identified exit to Mines 1413 | -9/Materials | Identified exit to Materials 2753 | -9/Materials | Build established: Scavenger-Mutant 2799 | -9/Materials | Core integrity fell below 50% 3003 | -9/Materials | Lost 3 parts (1p2n) 3247 | -9/Materials | Build established: Mutant 3780 | -9/Materials | First assault squad dispatched 3845 | -9/Materials | Build established: Scavenger-Mutant 3892 | -9/Materials | Repaired Hammer+ 3906 | -9/Materials | Entered Mines 3914 | -9/Mines | Found the Drone Emporium 3931 | -9/Mines | Found Prototype Device 4068 | -9/Mines | Deemed a non-threat by the Exiles lab entrance 4070 | -9/Mines | Discovered new exit (range 5) 4076 | -9/Mines | Entered Exiles 4115 | -9/Exiles | Met 8R-AWN 4162 | -9/Exiles | Met EX-HEX 4208 | -9/Exiles | Met EX-BIN 4227 | -9/Exiles | Aligned with FarCom system 4229 | -9/Exiles | Given EX-Vault access code 4277 | -9/Exiles | Opened EX-Vault 4293 | -9/Exiles | Found Longsword +1 4355 | -9/Exiles | Warned to stay clear of 0b10 Research branches 4403 | -9/Exiles | Met EX-DEC 4416 | -9/Exiles | Learned location of Zion (-7) 4470 | -9/Exiles | Discovered new exit (range 10) 4486 | -9/Exiles | Left Exiles lab with Longsword +1 4486 | -9/Exiles | Entered Mines 4762 | -8/Mines | Identified Splice Drone Bay 4821 | -8/Mines | Discovered exit to Materials (range 9) 4834 | -8/Mines | Entered Materials 4834 | -8/Materials | Evolved 2 slots: Utility x2 5379 | -8/Materials | Discovered new exit (range 8) 5979 | -8/Materials | Discovered new exit (range 14) 6330 | -8/Materials | Discovered new exit (range 5) 6426 | -8/Materials | Central database locked down 6610 | -8/Materials | Garrison activated, responded to threat 7136 | -8/Materials | Identified exit to Factory 7553 | -8/Materials | Build established: Hacker-Mutant 7813 | -8/Materials | Entered Factory 7813 | -7/Factory | Evolved 2 slots: Propulsion x2 7871 | -7/Factory | Identified exit to Factory 7984 | -7/Factory | Lost 5 parts (1p3n1u) 8247 | -7/Factory | Build established: Mutant 8582 | -7/Factory | Repaired Broken Surge Thruster+ 8817 | -7/Factory | Repaired Gauss Cannon 9355 | -7/Factory | Fabricated Hacking Suite (x1) 9412 | -7/Factory | Build established: Hacker-Mutant 10588 | -7/Factory | Fabricated Imp. Flight Unit (x1) 10729 | -7/Factory | Discovered new exit (range 5) 11050 | -7/Factory | Lost 7 parts (1p5n1w) 11279 | -7/Factory | Core integrity fell below 50% 11390 | -7/Factory | Build established: Scavenger-Mutant 11391 | -7/Factory | Entered another Factory area 11391 | -6/Factory | Evolved 2 slots: Utility x2 11559 | -6/Factory | Lost 3 parts (2n1u) 11634 | -6/Factory | Fabricated Hacking Suite (x1) 11710 | -6/Factory | Build established: Hacker-Mutant 11895 | -6/Factory | Repaired Gauss Cannon 11914 | -6/Factory | Central database locked down 12028 | -6/Factory | Repaired Imp. Flight Unit 12239 | -6/Factory | Fabricated Hacking Suite? 12333 | -6/Factory | Identified exit to Lower Caves 12423 | -6/Factory | Build established: Hacker-Sprinter 12467 | -6/Factory | Repaired Xenon Bombardment Thruster+ 12634 | -6/Factory | Core integrity fell below 50% 12668 | -6/Factory | Lost 3 parts (1p1n1u) 12782 | -6/Factory | Discovered new exit (range 6) 12940 | -6/Factory | Build established: Hacker-Mutant 13282 | -6/Factory | Entered Lower Caves 13353 | -6/Lower Caves | Spotted B-75 Beast 13370 | -6/Lower Caves | Found Prototype Device 13390 | -6/Lower Caves | Build established: Hacker-Sprinter 13554 | -6/Lower Caves | Discovered new exit (range 11) 13558 | -6/Lower Caves | Entered another Lower Caves area 13582 | -6/Lower Caves | Identified exit to Data Miner 13665 | -6/Lower Caves | Lost 4 parts (1p1n1u1w) 13680 | -6/Lower Caves | Encountered a Warlord checkpoint 13690 | -6/Lower Caves | Entered Data Miner 13690 | -6/Data Miner | Discovered new exit (range 6) 13695 | -6/Data Miner | Met Data Miner 13701 | -6/Data Miner | Learned location of Section 7 (-2) 13701 | -6/Data Miner | Acquired the access code to Warlord's prototype stash 13706 | -6/Data Miner | Received God Mode back door access code from Data Miner 13712 | -6/Data Miner | Entered Proximity Caves 13719 | -5/Proximity Caves | Escorted by Enhanced Grunt 13733 | -5/Proximity Caves | Core integrity fell below 20% 13741 | -5/Proximity Caves | Learned Factory terminal intel 13761 | -5/Proximity Caves | Learned location of 1 exit from Factory 13767 | -5/Proximity Caves | Spotted B-75 Beast 13810 | -5/Proximity Caves | Identified Heart of Steel 13853 | -5/Proximity Caves | Lost 5 parts (1p2n1u1w) 13878 | -5/Proximity Caves | System corruption reached 10% 13894 | -5/Proximity Caves | Core destroyed Last Messages --------------- 13852_ System corrupted: Matter fused (-6). 13869_ Slammed into P-70 Sage. 13874_ Hpw. Shock Rifle destroyed. 13875_ System corrupted: Energy discharge (-4). 13875_ Slammed into P-70 Sage. 13877_ Plasma Rifle destroyed. 13878_ Slammed into P-70 Sage. 13880_ Surge Thruster+ destroyed. 13881_ Slammed into P-70 Sage. 13882_ Weight Redist. System broken. 13882_ Destabilizing: Short circuit. 13884_ Slammed into P-70 Sage. 13884_ Heart of Steel broken. 13884_ Destabilizing: Short circuit. 13886_ Slammed into P-70 Sage. 13886_ Broken Weight Redist. System destroyed. 13888_ Slammed into P-70 Sage. 13888_ Destabilizing: Core damaged (-8). 13890_ Slammed into P-70 Sage. 13894_ Destabilizing: Core damaged (-34). Map ----- +----------------------------------------------------+ | ## ##??## ###????????????##??### #?# #? | | # ##?# #???????????## ### #### ## | | #?## #???????????# # | | ##?## ##???????????## | | #?## #?????????????## #### | | ## ### #??????????????## ###### | | ?# ##???????????????### #???# | | ?# ## ##??????????????????# ## #???## | | ## #?##?????????????????###% ### #???# | | # #####???????????????## ##?# #???# | | # #?????###????#### #??###??## | | ### ### #????## ##### ##??????# | | ??# ##?# #???## #??????# | | ##??# ##??# #??????## | | ## #???# ##### ####### | | ##?## #???## ##### ;;## | | ????# #???## #??### ;#?# | | ????## ???# ###### ## ###### | | ?????# ???# *%= ###????? | | ?????## ???## ##??????? | | ???????# ???## ####### ##???????? | | ????????#??## #????## ##????????? | | ???????????# #### % % ##?????????? | | ???????????# %%%% ## #??????????? | | ???????????#### %%p ##? ###??????????? | | ??????????????## ## @ ##?? #????????????? | | ???????????????# ##%%% ##??? #????????????? | | ???????????????## ####%%###?????##????????????? | | ????????????????######??####?????????????????????? | | ?????????????????????????????????????????????????? | | ?????????????????????????????????????????????????? | | ?????????????????????????????????????????????????? | | ?????????????????????????????????????????????????? | | ?????????????????????????????????????????????????? | | ?????????????????????????????????????????????????? | | ?????????????????????????????????????????????????? | | ?????????????????????????????????????????????????? | | ?????????????????????????????????????????????????? | | ?????????????????????????????????????????????????? | | ?????????????????????????????????????????????????? | | ?????????????????????????????????????????????????? | | ?????????????????????????????????????????????????? | | ?????????????????????????????????????????????????? | | ?????????????????????????????????????????????????? | | ?????????????????????????????????????????????????? | | | | | | | | | | | +----------------------------------------------------+ Best States ------------- Heat Dissipation 37 Energy Generation 18 Energy Capacity 300 Matter Stores 300 Matter Capacity 300 Sight Range 16 Terrain Scan Density 10 ECM Strength 2 Additional Mass Support 6 Armor Coverage 375 Resistance: KI 20 Melee Speed Boost 20 Evasion (%) 65 Targeting Accuracy 16 Target Analysis 5 Recoil Reduction 5 Energy Filtering 30 Offensive Hacking 60 Item Schematics ----------------- Particle Cannon | -9/Materials | Extracted Med. Matter Pod | -9/Materials | Extracted Lgt. Armor Plating | -9/Materials | Extracted Beam Cannon | -9/Materials | Extracted Hacking Suite | -8/Materials | Scanalyzed Imp. Flight Unit | -8/Materials | Scanalyzed Med. Armor Plating | -8/Materials | Extracted Enh. Autogun | -8/Materials | Extracted Cld. Ion Engine | -8/Materials | Extracted Hrd. Light Armor Plating | -6/Factory | Extracted Powered Hammer | -6/Factory | Extracted Hvy. Missile Launcher | -6/Factory | Extracted Hrd. Heavy Armor Plating | -6/Factory | Extracted Weight Redist. System | -6/Factory | Extracted Target Analyzer | -6/Factory | Extracted Combat Drone Bay | -6/Data Miner | Free Lgt. Regenerative Plating | -6/Data Miner | Free Enh. Flexi-carbon Leg | -6/Data Miner | Free Imp. Energy Well | -6/Data Miner | Free Imp. KE Penetrator | -6/Data Miner | Free Imp. Antigrav System | -6/Data Miner | Free Adv. Focal Shield | -6/Data Miner | Free Dispersion Rifle | -6/Data Miner | Free Robot Schematics ------------------ P-70 Sage | -6/Data Miner | Free G-50 Soldier | -6/Data Miner | Free R-10 Processor | -6/Data Miner | Free E-15 Imp | -6/Data Miner | Free M-36 Artificer | -6/Data Miner | Free L-61 Swordsman | -6/Data Miner | Free Fabricated ------------ Hacking Suite | x1 | -7/Factory Imp. Flight Unit | x1 | -7/Factory Hacking Suite | x1 | -6/Factory Hacking Suite | x1 | -6/Factory Repaired ---------- Assault Rifle | 16% | -10/Materials Hammer | 17% | -9/Materials Surge Thruster | 1% | -7/Factory | Broken Gauss Cannon | 19% | -7/Factory Gauss Cannon | 10% | -6/Factory Imp. Flight Unit | 52% | -6/Factory Xenon Bombardment Thruster | 23% | -6/Factory Studied --------- Hammer | -9/Materials | Hacked Surge Thruster | -8/Materials | Hacked Xenon Bombardment Thruster | -6/Factory | Hacked Alien Tech Used ----------------- None Achievements -------------- The Oracle Watch This! Challenges ------------ None Game ------ Seed InterceptMediumMegashotty Manual? 0 Play Time 02:26:19 Cumulative 39.8 hours Start 2026.07.09 @ 11:48:28 End 2026.07.09 @ 18:52:25 Sessions 3 Manual Loads 0 Difficulty Rogue Special Mode None Game No. 105 Rogue 105 Adventurer 0 Explorer 0 Win Type - Total 0 Types 0/0/0/0/0/0/0/0/0/0 Lore% 21 Gallery% 29 Achievement% 24 Wizard Run 0 Options --------- Layout 1 ASCII 0 Keyboard 1 Movement Vi Keybinds 0 Fullscreen 1 Font 24/Smallcaps Map View 50x35 Zoom Use 0% Tactical HUD 1 Map Filters NONE Filters NONE Steam 1 RUN: a9844b0c-c780-4151-849d-1b04a318afa3